bitfinex-derivatives/quotes_BTCF0:USTF0_20241223
["timestamp","ask_amount","ask_price","bid_price","bid_amount"]
[1734966348806,0.56064941,93930.0,93902.0,0.053308]
[1734966348807,0.053304,93909.0,93902.0,0.053308]
[1734966349102,0.006,93901.0,93900.0,1.60152]
[1734966349306,0.0533,93917.0,93909.0,0.053303]
[1734966349694,0.0533,93917.0,93907.0,0.3608]
[1734966350294,0.053301,93915.0,93907.0,0.414105]
[1734966350601,0.001,93928.0,93900.0,1.60152]
[1734966350602,0.19984941,93920.0,93900.0,1.60152]
[1734966350798,0.19984941,93920.0,93900.0,1.6]
[1734966351001,0.053303,93910.0,93902.0,0.053308]
[1734966351303,0.053305,93908.0,93900.0,0.1]
[1734966351605,0.0533,93915.0,93908.0,0.053304]
[1734966351807,0.053296,93923.0,93915.0,0.0533]
[1734966351998,0.001,93920.0,93917.0,0.3608]
[1734966352606,0.053296,93923.0,93918.0,0.053298]
[1734966353198,0.05329,93933.0,93918.0,0.053298]
[1734966353406,0.053296,93923.0,93918.0,0.053298]
[1734966353605,0.053297,93922.0,93917.0,0.3608]
[1734966353802,0.3608,93934.0,93917.0,0.3608]
[1734966354107,0.053299,93919.0,93917.0,0.3608]
[1734966354307,0.3608,93934.0,93907.0,0.053304]
[1734966354308,0.3608,93923.0,93907.0,0.053304]
[1734966354509,0.053306,93906.0,93900.0,0.1]
[1734966354810,0.053308,93902.0,93900.0,0.1]
[1734966355004,0.053304,93909.0,93902.0,0.053307]
[1734966355303,0.053305,93908.0,93900.0,0.1]
[1734966355498,0.3608,93915.0,93900.0,0.1]
[1734966355499,0.3608,93915.0,93903.0,0.053307]
[1734966355694,0.053307,93905.0,93900.0,0.1]
[1734966355903,0.053308,93901.0,93900.0,0.104]
[1734966356907,0.414101,93915.0,93900.0,0.104]
[1734966357106,0.053297,93922.0,93919.0,0.053298]
[1734966357301,0.053297,93922.0,93914.0,0.3608]
[1734966357302,0.053293,93928.0,93914.0,0.3608]
[1734966357519,0.3608,93938.0,93921.0,0.053297]
[1734966357696,0.3608,93938.0,93914.0,0.3608]
[1734966357905,0.3608,93929.0,93906.0,0.3608]
[1734966358200,0.3608,93929.0,93904.0,0.3608]
[1734966358606,0.3608,93929.0,93925.0,0.053294]
[1734966358802,0.3608,93937.0,93922.0,0.3608]
[1734966359001,0.00751502,93956.0,93933.0,0.3608]
[1734966359205,0.3608,93963.0,93943.0,0.053284]
[1734966359206,0.414074,93963.0,93943.0,0.053284]
[1734966359397,0.053275,93961.0,93948.0,0.053281]
[1734966359601,0.053276,93958.0,93951.0,0.3608]
[1734966359801,0.15256734,93979.0,93951.0,0.3608]
[1734966360208,0.053265,93978.0,93969.0,0.053269]
[1734966360408,0.15256734,93979.0,93977.0,0.053265]
[1734966360609,0.053264,93980.0,93978.0,0.3608]
[1734966360806,0.3608,93984.0,93970.0,0.36236]
[1734966361004,0.19984941,93980.0,93959.0,0.3608]
[1734966361205,0.3608,93962.0,93952.0,0.23072]
[1734966361410,0.3608,93973.0,93952.0,0.282479]
[1734966361609,0.053279,93952.0,93951.0,0.3608]
[1734966361807,0.3608,93963.0,93935.0,0.2369]
[1734966362013,0.3608,93973.0,93961.0,0.053274]
[1734966362200,0.001,93980.0,93962.0,0.3608]
[1734966362399,0.001,93980.0,93979.0,0.3608]
[1734966362909,0.3608,94008.0,93994.0,0.053256]
[1734966363104,0.053237,94027.0,93994.0,0.414055]
[1734966363305,0.19147101,94042.0,93994.0,0.414055]
[1734966363306,0.053242,94019.0,94004.0,0.3608]
[1734966363610,0.05324,94022.0,94004.0,0.3608]
[1734966363807,0.3608,94024.0,94004.0,0.3608]
[1734966364402,0.053255,93996.0,93994.0,0.3608]
[1734966364598,0.053255,93996.0,93984.0,0.3608]
[1734966364599,0.053244,94014.0,93984.0,0.3608]
[1734966364815,0.053256,93995.0,93952.0,0.053279]
[1734966365106,0.053256,93995.0,89500.0,0.0025]
[1734966365107,0.3608,93939.0,93900.0,0.014]
[1734966365409,0.414108,93901.0,93900.0,0.014]
[1734966365802,0.41419749,93901.0,93900.0,1.514]
[1734966366298,0.41419749,93901.0,93900.0,0.023]
[1734966366503,0.053324,93874.0,93873.0,8.623e-05]
[1734966366814,0.774924,93874.0,93873.0,8.623e-05]
[1734966367310,0.774924,93874.0,93873.0,1.50008623]
[1734966368412,0.774924,93874.0,93873.0,1.49996941]
[1734966368615,0.775924,93874.0,93873.0,1.49996941]
[1734966369019,0.774924,93874.0,93873.0,1.49996941]
[1734966369606,0.053326,93870.0,93862.0,0.016]
[1734966369809,0.3608,93863.0,93862.0,0.016]
[1734966370208,0.3608,93863.0,93859.0,0.053332]
[1734966370413,0.3608,93860.0,93837.0,0.2393]
[1734966370613,0.3608,93838.0,93830.0,0.016]
[1734966370919,0.0001161,93837.0,93835.0,0.053346]
[1734966371705,0.0001161,93837.0,93836.0,0.30011846]
[1734966371903,0.3608,93855.0,93845.0,0.05334]
[1734966372104,0.3608,93855.0,93841.0,0.3608]
[1734966372419,0.3608,93855.0,93849.0,0.053337]
[1734966372718,0.3608,93855.0,93854.0,1.5]
[1734966372914,0.36085962,93855.0,93854.0,1.5]
[1734966374320,0.36185962,93855.0,93854.0,1.5]
[1734966374713,0.36185962,93855.0,93854.0,1.555335]
[1734966375016,0.00105962,93855.0,93854.0,1.555335]
[1734966375217,0.3608,93866.0,93854.0,1.5]
[1734966375414,0.3608,93866.0,93865.0,0.053329]
[1734966375604,0.3608,93886.0,93875.0,0.053323]
[1734966375805,0.3608,93876.0,93854.0,0.003]
[1734966376114,0.3608,93855.0,93854.0,0.004]
[1734966376509,0.3608,93855.0,93854.0,1.504]
[1734966376727,0.7216,93855.0,93854.0,0.004]
[1734966377025,0.7216,93855.0,93854.0,0.002]
[1734966377519,0.7216,93855.0,93825.0,0.3608]
[1734966377824,0.3608,93839.0,93828.0,0.016]
[1734966378521,0.36140001,93855.0,93838.0,0.053344]
[1734966378716,0.414135,93855.0,93835.0,0.3608]
[1734966378914,0.414135,93855.0,93840.0,0.053343]
[1734966379110,0.3608,93841.0,93826.0,0.016]
[1734966379413,0.3608,93855.0,93836.0,0.00311846]
[1734966379414,0.3608,93847.0,93836.0,0.00311846]
[1734966379623,0.3608,93838.0,93837.0,0.053345]
[1734966380319,0.053334,93857.0,93846.0,0.05334]
[1734966380505,0.053334,93856.0,93846.0,0.05334]
[1734966380707,0.3608,93847.0,93846.0,0.05334]
[1734966381017,0.3608,93847.0,93836.0,0.00011846]
[1734966381220,0.3608,93838.0,93836.0,0.00011846]
[1734966381517,0.3608,93838.0,93800.0,0.153366]
[1734966381717,0.3608,93804.0,93800.0,0.1]
[1734966382122,0.3608,93804.0,93801.0,0.053365]
[1734966382423,0.00011644,93803.0,93801.0,0.053365]
[1734966383314,0.00011644,93803.0,93800.0,0.104]
[1734966383514,0.00011644,93803.0,93801.0,0.053365]
[1734966383715,0.00011644,93803.0,93800.0,0.104]
[1734966383919,0.00011644,93803.0,93801.0,0.12031474]
[1734966384115,0.053353,93824.0,93817.0,0.053356]
[1734966384321,0.3608,93818.0,93817.0,0.053356]
[1734966385123,0.3608,93818.0,93803.0,0.3608]
[1734966385425,0.36136001,93829.0,93827.0,0.05335]
[1734966385620,0.053345,93837.0,93827.0,0.05335]
[1734966385812,0.3608,93833.0,93813.0,0.053358]
[1734966386018,0.3608,93833.0,93811.0,0.6608]
[1734966386322,0.3608,93833.0,93832.0,0.053348]
[1734966387322,0.053338,93849.0,93832.0,0.3608]
[1734966387525,0.053339,93848.0,93840.0,0.053343]
[1734966387718,0.3608,93841.0,93833.0,1.50108]
[1734966387919,0.053354,93821.0,93811.0,0.053359]
[1734966388124,0.3608,93819.0,93813.0,0.001]
[1734966388822,0.3608,93819.0,93805.0,0.3608]
[1734966389122,0.3608,93819.0,93806.0,1.5]
[1734966389519,0.3618,93819.0,93814.0,0.053357]
[1734966389723,0.3618,93819.0,93806.0,1.8]
[1734966389918,0.3608,93834.0,93818.0,0.3608]
[1734966390118,0.3608,93834.0,93806.0,2.1608]
[1734966390310,0.3608,93823.0,93806.0,1.8608]
[1734966390516,0.3608,93823.0,93807.0,0.11645625]
[1734966390716,0.053357,93815.0,93813.0,0.001]
[1734966391118,0.3608,93823.0,93821.0,0.053353]
[1734966391423,0.19984941,93840.0,93811.0,0.053359]
[1734966391424,0.053346,93836.0,93811.0,0.053359]
[1734966391622,0.053344,93838.0,93809.0,0.3608]
[1734966391835,0.19984941,93850.0,93809.0,0.3608]
[1734966391836,0.3608,93849.0,93824.0,0.053352]
[1734966392021,0.3608,93825.0,93816.0,0.053356]
[1734966392218,0.001,93823.0,93809.0,0.3608]
[1734966392616,0.001,93823.0,93821.0,0.053353]
[1734966393218,0.3618,93823.0,93814.0,0.053357]
[1734966393421,0.3618,93823.0,93810.0,1.50108]
[1734966393422,0.3618,93823.0,93816.0,0.053356]
[1734966393626,0.3618,93823.0,93820.0,0.053354]
[1734966393827,0.3608,93823.0,93820.0,0.053354]
[1734966394123,0.053363,93804.0,93800.0,0.1]
[1734966394335,0.3608,93823.0,93800.0,0.1]
[1734966394526,0.053356,93818.0,93802.0,0.053364]
[1734966394722,0.053356,93818.0,93816.0,0.001]
[1734966395327,0.36136001,93823.0,93819.0,0.053355]
[1734966395525,0.3618,93823.0,93819.0,0.053355]
[1734966396023,0.3608,93823.0,93819.0,0.053355]
[1734966396630,0.3608,93823.0,93822.0,0.053353]
[1734966397228,0.15256734,93825.0,93824.0,0.053352]
[1734966397627,0.15256734,93825.0,93811.0,0.053359]
[1734966397628,0.053354,93820.0,93811.0,0.12149768]
[1734966397826,0.053355,93819.0,93809.0,0.016]
[1734966398027,0.51336734,93825.0,93809.0,0.016]
[1734966398227,0.053353,93823.0,93811.0,0.053359]
[1734966398428,0.053355,93819.0,93811.0,0.053359]
[1734966398628,0.053352,93824.0,93811.0,0.053359]
[1734966398826,0.48397839,93817.0,93811.0,0.053359]
[1734966399029,0.053357,93815.0,93811.0,0.053359]
[1734966399833,0.48397839,93817.0,93815.0,0.053357]
[1734966400025,0.3608,93817.0,93815.0,0.053357]
[1734966400427,0.3608,93817.0,93800.0,0.1]
[1734966400753,0.3608,93817.0,93806.0,0.053362]
[1734966401033,0.12321947,93816.0,93802.0,0.053364]
[1734966401219,0.17657647,93816.0,93815.0,0.001]
[1734966401419,0.053365,93801.0,93800.0,0.1]
[1734966401623,0.414165,93801.0,93800.0,0.1]
[1734966402530,0.3608,93801.0,93785.0,0.00635382]
[1734966402730,0.3608,93801.0,93783.0,0.3608]
[1734966403038,0.001,93801.0,93783.0,0.3608]
[1734966403230,0.053367,93799.0,93783.0,0.3608]
[1734966403423,0.001,93801.0,93783.0,0.3608]
[1734966403629,0.001,93801.0,93799.0,0.053366]
[1734966403825,0.001,93801.0,93800.0,0.003]
[1734966404629,0.001,93801.0,93800.0,1.5]
[1734966404829,0.002,93801.0,93800.0,1.5]
[1734966405728,0.001,93801.0,93800.0,1.8]
[1734966405931,0.15398621,93819.0,93809.0,0.053361]
[1734966406234,0.15398621,93819.0,93818.0,0.3608]
[1734966406430,0.15398621,93819.0,93810.0,0.05336]
[1734966406733,0.15398621,93819.0,93814.0,0.053358]
[1734966407129,0.15398621,93819.0,93815.0,0.053357]
[1734966407330,0.15398621,93819.0,93800.0,1.87015511]
[1734966407331,0.15398621,93819.0,93810.0,0.05336]
[1734966407534,0.053355,93820.0,93818.0,0.001]
[1734966408253,0.3608,93821.0,93794.0,0.053369]
[1734966408534,0.3608,93799.0,93794.0,0.053369]
[1734966408738,0.3608,93799.0,93788.0,0.053372]
[1734966408926,0.3608,93799.0,93795.0,0.053368]
[1734966409130,0.3608,93807.0,93795.0,0.053368]
[1734966409526,0.3608,93807.0,93782.0,1.5]
[1734966409732,0.3608,93807.0,93789.0,0.3608]
[1734966410030,0.23714995,93816.0,93802.0,0.053364]
[1734966410227,0.18379295,93816.0,93801.0,0.3608]
[1734966410437,0.18379295,93816.0,93811.0,0.053359]
[1734966411133,0.2249,93819.0,93810.0,0.053359]
[1734966411439,0.3608,93821.0,93814.0,0.053357]
[1734966411635,0.3608,93821.0,93816.0,0.053356]
[1734966411839,0.3608,93821.0,93811.0,0.001]
[1734966411840,0.053358,93813.0,93811.0,0.001]
[1734966412032,0.3608,93812.0,93811.0,0.001]
[1734966412232,0.3608,93812.0,93795.0,0.001]
[1734966412433,0.3608,93796.0,93786.0,0.053373]
[1734966412740,0.3608,93787.0,93781.0,0.00630867]
[1734966413042,0.053374,93786.0,93779.0,0.00159931]
[1734966413539,0.053374,93785.0,93779.0,0.00159931]
[1734966413941,0.053374,93785.0,93781.0,0.007]
[1734966414140,0.053376,93783.0,93781.0,0.007]
[1734966414639,0.053383,93770.0,93747.0,0.016]
[1734966414937,0.3608,93753.0,93752.0,0.053393]
[1734966415140,0.00064,93764.0,93763.0,0.053387]
[1734966415335,0.3608,93773.0,93749.0,0.3608]
[1734966415640,0.19984941,93770.0,93747.0,0.02245828]
[1734966415832,0.3608,93765.0,93750.0,0.053394]
[1734966416136,0.3608,93765.0,93748.0,1.5]
[1734966416327,0.001,93770.0,93768.0,0.053384]
[1734966416530,8.633e-05,93772.0,93770.0,0.053383]
[1734966416728,0.3608,93771.0,93749.0,0.2387]
[1734966416930,0.3608,93771.0,93751.0,0.3608]
[1734966417142,0.3608,93771.0,93759.0,0.3608]
[1734966417343,0.001,93765.0,93759.0,0.3608]
[1734966417543,0.001,93765.0,93764.0,0.053386]
[1734966418134,8.633e-05,93772.0,93771.0,0.053382]
[1734966419047,3.3e-07,93772.0,93771.0,0.053382]
[1734966419242,3.3e-07,93772.0,93771.0,0.714182]
[1734966419445,3.3e-07,93772.0,93771.0,0.82883827]
[1734966419741,3.3e-07,93772.0,93771.0,1.915182]
[1734966420546,0.19984941,93800.0,93771.0,2.27998117]
[1734966420745,0.19984941,93800.0,93792.0,0.05337]
[1734966420949,0.19984941,93800.0,93793.0,0.053369]
[1734966421331,0.053368,93797.0,93788.0,0.053372]
[1734966421544,5.3e-05,93796.0,93779.0,0.3608]
[1734966421751,5.3e-05,93796.0,93792.0,0.3608]
[1734966421946,5.3e-05,93796.0,93795.0,0.053369]
[1734966423142,0.3608,93828.0,93823.0,0.053353]
[1734966423334,0.00060001,93828.0,93823.0,0.053353]
[1734966423538,0.54459295,93830.0,93823.0,0.053353]
[1734966423740,0.54515296,93830.0,93823.0,0.053353]
[1734966424739,0.00056001,93830.0,93829.0,0.053349]
[1734966424945,0.00056001,93830.0,93823.0,0.053353]
[1734966424946,0.007,93824.0,93823.0,0.53434893]
[1734966425141,0.053343,93840.0,93823.0,0.48099593]
[1734966425345,0.009,93824.0,93815.0,0.5917]
[1734966425538,0.009,93824.0,93822.0,0.053353]
[1734966425939,0.3608,93841.0,93823.0,0.3608]
[1734966426139,0.001,93830.0,93829.0,0.054349]
[1734966426550,0.09230592,93845.0,93844.0,0.053341]
[1734966426964,0.053346,93835.0,93829.0,0.002]
[1734966427143,0.053348,93831.0,93829.0,0.001]
[1734966427347,0.003,93830.0,93800.0,9.674e-05]
[1734966427546,0.3608,93807.0,93801.0,0.31777132]
[1734966427748,0.053364,93804.0,93801.0,0.31777132]
[1734966428049,0.3608,93807.0,93801.0,0.31777132]
[1734966428050,0.053364,93803.0,93801.0,0.31777132]
[1734966428850,0.3608,93807.0,93800.0,9.674e-05]
[1734966429054,0.001,93804.0,93801.0,0.005]
[1734966429353,0.001,93804.0,93802.0,0.053365]
[1734966430049,0.001,93804.0,93802.0,0.414165]
[1734966430245,0.3608,93816.0,93815.0,0.053357]
[1734966430445,0.09230592,93817.0,93815.0,0.414157]
[1734966430852,0.09230592,93817.0,93816.0,1.5]
[1734966431347,0.3608,93834.0,93816.0,1.5]
[1734966431549,0.09230592,93842.0,93824.0,0.053352]
[1734966431753,0.09230592,93842.0,93822.0,0.3608]
[1734966431945,0.09230592,93842.0,93816.0,1.5]
[1734966432252,0.053353,93823.0,93803.0,0.22]
[1734966432456,0.3608,93826.0,93820.0,0.053354]
[1734966432649,0.3608,93842.0,93810.0,0.56064941]
[1734966432959,0.3608,93842.0,93835.0,0.053345]
[1734966433153,0.3608,93842.0,93818.0,0.3608]
[1734966433354,0.3608,93842.0,93840.0,0.053343]
[1734966433652,0.3608,93842.0,93839.0,0.053343]
[1734966434058,0.3608,93842.0,93837.0,0.053344]
[1734966434255,0.3608,93842.0,93840.0,0.053343]
[1734966434457,0.3608,93842.0,93827.0,0.3608]
[1734966434754,0.3688,93842.0,93825.0,0.2184]
[1734966434959,0.3608,93832.0,93807.0,0.3608]
[1734966435253,0.3608,93832.0,93825.0,0.053351]
[1734966435454,0.414148,93832.0,93825.0,0.053351]
[1734966435654,0.3608,93832.0,93810.0,0.11474015]
[1734966435848,0.3608,93832.0,93808.0,0.00108]
[1734966436050,0.00856001,93842.0,93840.0,0.053343]
[1734966436246,0.012,93842.0,93840.0,0.053343]
[1734966436553,0.012,93842.0,93841.0,1.5]
[1734966436863,0.008,93842.0,93841.0,1.5]
[1734966437160,0.09230592,93856.0,93841.0,1.5]
[1734966437546,0.00056001,93859.0,93845.0,0.3608]
[1734966437747,0.09230592,93872.0,93871.0,0.053325]
[1734966438154,0.09230592,93872.0,93871.0,0.16477137]
[1734966438553,0.09230592,93872.0,93871.0,0.18077137]
[1734966438861,0.09230592,93872.0,93871.0,0.069325]
[1734966439068,0.09830592,93872.0,93871.0,0.069325]
[1734966439252,0.006,93872.0,93871.0,0.069325]
[1734966439448,0.006,93872.0,93861.0,0.016]
[1734966439658,0.3608,93865.0,93842.0,0.016]
[1734966439851,0.3608,93857.0,93846.0,0.3608]
[1734966440060,0.3608,93857.0,93855.0,0.053334]
[1734966441662,0.3618,93857.0,93855.0,0.053334]
[1734966442761,0.001,93857.0,93856.0,0.3608]
[1734966443059,0.09230592,93894.0,93862.0,0.05333]
[1734966443363,0.09230592,93894.0,93893.0,0.3608]
[1734966444264,0.54519296,93911.0,93899.0,0.053309]
[1734966444265,9.2e-07,93900.0,93899.0,0.053309]
[1734966444657,9.2e-07,93900.0,93899.0,0.17200938]
[1734966444858,9.2e-07,93900.0,93899.0,0.053309]
[1734966445255,9.2e-07,93900.0,93899.0,0.17200938]
[1734966445865,0.00500092,93900.0,93899.0,0.17200938]
[1734966446760,0.5884,93929.0,93924.0,0.053295]
[1734966447260,0.5884,93929.0,93928.0,0.053293]
[1734966447455,0.3608,93929.0,93928.0,0.053293]
[1734966447953,0.3608,93934.0,93928.0,0.053293]
[1734966448170,0.3608,93934.0,93903.0,0.3608]
[1734966448171,0.3608,93932.0,93903.0,0.3608]
[1734966448460,0.3608,93911.0,93899.0,0.00124]
[1734966448664,0.3608,93911.0,93900.0,0.053309]
[1734966448855,0.3608,93911.0,93901.0,0.053308]
[1734966449455,0.414103,93911.0,93901.0,0.053308]
[1734966449675,0.417103,93911.0,93901.0,0.053308]
[1734966450367,0.414103,93911.0,93901.0,0.053308]
[1734966450568,0.3628,93911.0,93901.0,0.053308]
[1734966450863,0.3608,93903.0,93894.0,0.053312]
[1734966451165,0.3608,93903.0,93890.0,0.19984941]
[1734966451367,0.3608,93903.0,93902.0,0.053308]
[1734966451561,0.3608,93903.0,93900.0,0.053309]
[1734966451751,0.2427,93910.0,93900.0,0.053309]
[1734966451956,0.053305,93908.0,93900.0,0.053309]
[1734966452163,0.001,93903.0,93894.0,0.002]
[1734966452361,0.001,93903.0,93901.0,0.053308]
[1734966452970,0.3608,93922.0,93894.0,0.002]
[1734966453170,0.3608,93902.0,93894.0,0.055312]
[1734966453563,0.3608,93902.0,93894.0,0.053312]
[1734966453759,0.004,93903.0,93901.0,0.414108]
[1734966453971,0.3608,93922.0,93921.0,0.053297]
[1734966454180,0.3618,93922.0,93921.0,0.053297]
[1734966454863,0.3608,93922.0,93921.0,0.053297]
[1734966455267,0.00512518,93933.0,93921.0,0.3608]
[1734966455460,0.6028,93952.0,93945.0,0.053283]
[1734966455656,0.3608,93952.0,93950.0,0.05328]
[1734966456462,0.3608,93952.0,93951.0,0.05328]
[1734966456664,0.3608,93973.0,93951.0,0.05328]
[1734966456870,0.3608,93973.0,93965.0,0.053272]
[1734966457189,0.3608,93973.0,93959.0,0.34614472]
[1734966457361,0.3608,93973.0,93960.0,0.19984941]
[1734966457562,0.3608,93973.0,93968.0,0.05327]
[1734966457767,0.3608,93973.0,93967.0,0.053271]
[1734966457958,0.3608,93973.0,93968.0,0.05327]
[1734966458161,0.3608,93973.0,93965.0,0.004]
[1734966458356,0.053271,93966.0,93965.0,0.004]
[1734966459067,0.7216,93973.0,93965.0,0.005]
[1734966459263,0.3608,93982.0,93965.0,0.005]
[1734966459461,0.3608,93982.0,93970.0,0.19984941]
[1734966459671,0.3608,93972.0,93965.0,0.006]
[1734966459871,0.05327,93969.0,93968.0,0.003]
[1734966460259,0.3608,93972.0,93968.0,0.003]
[1734966460465,0.3638,93982.0,93961.0,0.3608]
[1734966460666,0.3638,93982.0,93960.0,0.19984941]
[1734966460867,0.3608,93972.0,93966.0,0.11592027]
[1734966461063,0.05327,93968.0,93961.0,0.053274]
[1734966461266,0.053273,93963.0,93954.0,0.053278]
[1734966461570,0.3608,93966.0,93948.0,0.11142613]
[1734966461774,0.3608,93958.0,93941.0,0.053285]
[1734966462075,0.3608,93958.0,93937.0,0.016]
[1734966462374,0.36136001,93966.0,93964.0,0.053272]
[1734966462562,0.003,93969.0,93952.0,0.3608]
[1734966462766,0.3608,93967.0,93962.0,0.053273]
[1734966463270,0.3608,93967.0,93964.0,0.053273]
[1734966463676,0.3608,93978.0,93952.0,0.3608]
[1734966463875,0.3608,93978.0,93976.0,0.053265]
[1734966464779,0.3608,93978.0,93962.0,0.3608]
[1734966464963,0.00621124,93998.0,93977.0,0.3608]
[1734966465166,0.1,94000.0,93999.0,0.053253]
[1734966465472,0.15363973,94020.0,93999.0,0.41241288]
[1734966465676,0.15363973,94020.0,94019.0,0.053241]
[1734966466069,0.15363973,94020.0,94019.0,0.16565388]
[1734966466263,0.15363973,94020.0,94019.0,0.11241288]
[1734966466463,0.15363973,94020.0,94013.0,0.3608]
[1734966466676,0.15363973,94020.0,94010.0,0.3608]
[1734966466886,0.15363973,94020.0,94011.0,1.5]
[1734966467079,0.053237,94027.0,94011.0,1.61106295]
[1734966467372,0.053237,94027.0,94002.0,0.00619345]
[1734966467567,0.3688,94020.0,94019.0,0.001]
[1734966467967,0.3608,94020.0,94009.0,0.053247]
[1734966468174,0.3658,94020.0,94009.0,0.053247]
[1734966468376,0.053242,94019.0,94002.0,0.00011314]
[1734966468571,0.3608,94010.0,94002.0,0.00011314]
[1734966468771,0.7216,94010.0,94002.0,0.00011314]
[1734966469077,0.05325,94003.0,94002.0,0.00011314]
[1734966469667,0.775487,94010.0,94002.0,0.00011314]
[1734966469879,0.774847,94010.0,94002.0,0.00011314]
[1734966470175,0.053248,94008.0,94002.0,0.00011314]
[1734966470387,0.001,94003.0,94002.0,0.00011314]
[1734966471076,0.05325,94004.0,94002.0,0.00011314]
[1734966471471,0.72520001,94010.0,94002.0,0.00011314]
[1734966471472,0.72420001,94010.0,94007.0,0.053248]
[1734966471664,0.7216,94010.0,94007.0,0.053248]
[1734966471867,0.7216,94010.0,94008.0,0.053247]
[1734966472078,0.053246,94011.0,94005.0,0.053249]
[1734966472374,0.3608,94006.0,94005.0,0.053249]
[1734966473873,0.05325,94004.0,94002.0,0.00011314]
[1734966474087,0.3608,94003.0,94002.0,0.00011314]
[1734966475790,0.3628,94003.0,94002.0,0.00011314]
[1734966476777,0.3638,94003.0,94002.0,0.00011314]
[1734966476974,0.7246,94003.0,94002.0,0.00011314]
[1734966477182,0.05326,93986.0,93973.0,0.64712]
[1734966477482,0.053262,93982.0,93973.0,0.28632]
[1734966477682,0.36144,93987.0,93973.0,0.28632]
[1734966477883,0.3608,93987.0,93984.0,0.053261]
[1734966478084,0.00011314,93986.0,93984.0,0.053261]
[1734966478584,0.00111314,93986.0,93984.0,0.053261]
[1734966479093,0.00111314,93986.0,93984.0,0.05125628]
[1734966479583,0.00111314,93986.0,93984.0,0.053261]
[1734966479774,0.00311314,93986.0,93984.0,0.053261]
[1734966480179,0.00211314,93986.0,93984.0,0.053261]
[1734966480383,0.00211314,93986.0,93985.0,0.11413204]
[1734966480582,0.3608,94001.0,93999.0,0.053252]
[1734966480983,0.3608,94001.0,93999.0,0.053253]
[1734966481686,0.36136001,94010.0,93985.0,1.507]
[1734966481981,0.3608,94010.0,94008.0,0.053247]
[1734966482378,0.3608,94010.0,93985.0,0.007]
[1734966482571,0.3608,93995.0,93985.0,0.007]
[1734966482977,0.3608,93986.0,93985.0,0.009]
[1734966483176,0.3608,93986.0,93985.0,0.002]
[1734966483382,0.3608,93986.0,93961.0,0.37676]
[1734966483383,0.053261,93985.0,93961.0,0.053274]
[1734966483681,0.053275,93960.0,93944.0,0.2176]
[1734966483881,0.3608,93959.0,93955.0,0.053277]
[1734966484081,0.053275,93960.0,93956.0,0.053277]
[1734966484781,0.36136001,93962.0,93938.0,0.2862]
[1734966484986,0.053294,93927.0,93926.0,0.25460816]
[1734966485177,0.414094,93927.0,93926.0,0.25460816]
[1734966485376,0.053298,93919.0,93913.0,0.19037549]
[1734966485683,0.414098,93919.0,93913.0,0.19037549]
[1734966485879,0.36136001,93927.0,93913.0,0.19037549]
[1734966486085,0.3608,93938.0,93913.0,0.19037549]
[1734966486086,7.744e-05,93926.0,93925.0,0.053295]
[1734966486686,0.053296,93924.0,93918.0,0.05489586]
[1734966486883,7.744e-05,93926.0,93922.0,0.053296]
[1734966487092,0.05337144,93926.0,93918.0,0.00459686]
[1734966487584,0.05337144,93926.0,93925.0,0.006]
[1734966487981,7.744e-05,93926.0,93925.0,0.006]
[1734966488282,0.053296,93923.0,93922.0,0.001]
[1734966488481,0.414096,93923.0,93922.0,0.001]
[1734966488679,0.714096,93923.0,93898.0,0.05331]
[1734966488884,0.3608,93901.0,93898.0,0.05331]
[1734966489187,0.3608,93901.0,93900.0,0.153309]
[1734966489391,0.3608,93901.0,93900.0,0.1]
[1734966489791,0.36090058,93901.0,93891.0,0.00010998]
[1734966489990,0.3608,93892.0,93891.0,0.00010998]
[1734966490483,0.3608,93892.0,93862.0,0.3608]
[1734966490680,0.3608,93892.0,93859.0,0.231]
[1734966490681,0.3608,93864.0,93859.0,0.053332]
[1734966490991,0.3608,93860.0,93856.0,1.5]
[1734966491195,0.053333,93858.0,93855.0,0.00159792]
[1734966491386,0.053334,93856.0,93855.0,0.00159792]
[1734966491693,0.00056001,93864.0,93855.0,0.05493192]
[1734966491887,0.3608,93874.0,93855.0,0.05493192]
[1734966491888,0.3608,93874.0,93859.0,0.3608]
[1734966492081,0.3608,93886.0,93856.0,0.3658]
[1734966492291,0.053323,93876.0,93860.0,0.3608]
[1734966492793,0.19984941,93880.0,93864.0,0.3608]
[1734966492794,0.053327,93869.0,93864.0,0.3608]
[1734966493001,7.965e-05,93875.0,93864.0,0.3608]
[1734966493186,0.053328,93867.0,93864.0,0.3608]
[1734966493492,0.3608,93870.0,93858.0,0.3608]
[1734966493795,0.053329,93865.0,93856.0,0.009]
[1734966494092,0.053326,93870.0,93859.0,0.414132]
[1734966494296,7.965e-05,93875.0,93855.0,0.00159792]
[1734966494495,0.053329,93865.0,93855.0,0.00159792]
[1734966494792,0.05340265,93875.0,93868.0,0.053327]
[1734966495600,0.05340265,93875.0,93864.0,0.003]
[1734966495601,0.053325,93872.0,93871.0,0.3608]
[1734966495796,7.965e-05,93875.0,93871.0,0.3608]
[1734966495993,7.965e-05,93875.0,93872.0,0.053325]
[1734966496196,7.965e-05,93875.0,93871.0,0.3608]
[1734966496493,0.053326,93870.0,93864.0,0.003]
[1734966496798,0.053328,93866.0,93864.0,0.003]
[1734966496991,0.053328,93866.0,93859.0,0.053332]
[1734966497184,0.053324,93873.0,93865.0,0.3608]
[1734966497401,0.053324,93873.0,93859.0,0.053332]
[1734966497591,7.965e-05,93875.0,93864.0,0.3608]
[1734966497790,0.00307965,93875.0,93861.0,0.053331]